fUSD/lending_fUSD_20250519
["ID","MTS","AMOUNT","RATE_DAILY","PERIOD"]
[361653388,1747669831941,-121.07233667,0.00011295,2]
[361653389,1747669831951,-200.0,0.00011297,2]
[361653390,1747669831960,-1100.0,0.000113,4]
[361653391,1747669831970,-200.0,0.00011326,2]
[361653392,1747669831980,-200.0,0.00011332,2]
[361653393,1747669831989,-152.13,0.0001134,2]
[361653394,1747669831999,-1400.0,0.000114,4]
[361653395,1747669832009,-200.0,0.00011445,2]
[361653396,1747669832019,-1800.0,0.000115,4]
[361653397,1747669832028,-1200.0,0.0001156,2]
[361653398,1747669832037,-3135.71307194,0.00011561,2]
[361653399,1747669832046,-300.0,0.00011599,2]
[361653400,1747669832056,-300.0,0.000116,4]
[361653401,1747669832066,-453.11,0.000116,2]
[361653402,1747669832075,-162.76,0.000116,2]
[361653403,1747669832084,-453.11,0.000116,2]
[361653404,1747669832093,-1702.0,0.000116,2]
[361653405,1747669832102,-1808.0,0.000116,2]
[361653406,1747669832112,-500.0,0.00011671,2]
[361653407,1747669832121,-537.0,0.00011698,2]
[361653408,1747669832131,-150.0,0.00011699,2]
[361653409,1747669832140,-1925.0,0.00011699,2]
[361653410,1747669832149,-1925.0,0.00011699,2]
[361653411,1747669832158,-162.76,0.000117,2]
[361653412,1747669832167,-352.35,0.000117,2]
[361653413,1747669832177,-150.3,0.000117,2]
[361653414,1747669832186,-162.76,0.000117,2]
[361653415,1747669832196,-270.7647,0.000117,2]
[361653416,1747669832206,-150.0,0.000117,2]
[361653417,1747669832215,-2074.5551,0.000117,2]
[361653418,1747669832224,-400.4984,0.000117,2]
[361653419,1747669832234,-1000.0,0.000117,2]
[361653420,1747669832243,-1172.0,0.000117,2]
[361653421,1747669832252,-601.93471568,0.000117,2]
[361653422,1747669832261,-2419.13118497,0.000117,2]
[361653423,1747669832271,-1000.0,0.000117,2]
[361653424,1747669832280,-300.0,0.000117,4]
[361653425,1747669832289,-162.76,0.000117,2]
[361653426,1747669832300,-1664.0,0.000117,2]
[361653427,1747669832309,-1000.0,0.000117,2]
[361653428,1747669832318,-1000.0,0.000117,2]
[361653429,1747669832327,-1000.0,0.000117,2]
[361653430,1747669832336,-160.92013148,0.000117,2]
[361653431,1747669832345,-2500.0,0.000117,2]
[361653432,1747669832354,-500.0,0.0001172,2]
[361653433,1747669832363,-500.0,0.0001172,2]
[361653434,1747669832373,-500.0,0.0001172,2]
[361653435,1747669832382,-500.0,0.0001172,2]
[361653436,1747669832391,-305.20682268,0.0001172,2]
[361653437,1747669832401,-500.0,0.0001172,2]
[361653438,1747669832411,-500.0,0.0001172,2]
[361653439,1747669832421,-500.0,0.0001172,2]
[361653440,1747669832430,-500.0,0.0001172,2]
[361653441,1747669832440,-500.0,0.0001172,2]
[361653442,1747669832450,-500.0,0.0001172,2]
[361653443,1747669832460,-500.0,0.0001172,2]
[361653444,1747669832469,-500.0,0.0001172,2]
[361653445,1747669832478,-500.0,0.0001172,2]
[361653446,1747669832487,-500.0,0.0001172,2]
[361653447,1747669832497,-500.0,0.0001172,2]
[361653448,1747669832507,-500.0,0.0001172,2]
[361653449,1747669832516,-500.0,0.0001172,2]
[361653450,1747669832526,-366.82041755,0.0001172,2]
[361653451,1747669832536,-500.0,0.0001172,2]
[361653452,1747669832547,-500.0,0.0001172,2]
[361653453,1747669832556,-500.0,0.0001172,2]
[361653454,1747669832567,-500.0,0.0001172,2]
[361653455,1747669832578,-500.0,0.0001172,2]
[361653458,1747669832885,-500.0,0.0001172,2]
[361653459,1747669832895,-500.0,0.0001172,2]
[361653460,1747669832904,-500.0,0.0001172,2]
[361653461,1747669832914,-500.0,0.0001172,2]
[361653462,1747669832926,-500.0,0.0001172,2]
[361653463,1747669832934,-3.34311903,0.0001172,2]
[361653464,1747669832948,-496.65688097,0.0001172,2]
[361653465,1747669832956,-447.01275113,0.0001172,2]
[361653466,1747669832967,-52.98724887,0.0001172,2]
[361653467,1747669832976,-500.0,0.0001172,2]
[361653468,1747669832986,-500.0,0.0001172,2]
[361653469,1747669832995,-500.0,0.0001172,2]
[361653470,1747669833007,-34.45292197,0.0001172,2]
[361653471,1747669833019,-465.54707803,0.0001172,2]
[361653472,1747669833029,-500.0,0.0001172,2]
[361653473,1747669833038,-500.0,0.0001172,2]
[361653474,1747669833048,-500.0,0.0001172,2]
[361653475,1747669833057,-500.0,0.0001172,2]
[361653476,1747669833067,-500.0,0.0001172,2]
[361653477,1747669833076,-500.0,0.0001172,2]
[361653478,1747669833085,-500.0,0.0001172,2]
[361653479,1747669833095,-500.0,0.0001172,2]
[361653480,1747669833106,-500.0,0.0001172,2]
[361653481,1747669833115,-500.0,0.0001172,2]
[361653482,1747669833125,-500.0,0.0001172,2]
[361653483,1747669833134,-500.0,0.0001172,2]
[361653484,1747669833144,-500.0,0.0001172,2]
[361653485,1747669833153,-500.0,0.0001172,2]
[361653486,1747669833163,-500.0,0.0001172,2]
[361653487,1747669833172,-500.0,0.0001172,2]
[361653488,1747669833181,-500.0,0.0001172,2]
[361653489,1747669833192,-500.0,0.0001172,2]
[361653490,1747669833201,-500.0,0.0001172,2]
[361653491,1747669833211,-500.0,0.0001172,2]
[361653492,1747669833220,-500.0,0.0001172,2]
[361653493,1747669833230,-500.0,0.0001172,2]
[361653494,1747669833239,-500.0,0.0001172,2]
[361653495,1747669833248,-500.0,0.0001172,2]
[361653496,1747669833258,-500.0,0.0001172,2]
[361653497,1747669833268,-500.0,0.0001172,2]
[361653498,1747669833277,-500.0,0.0001172,2]
[361653499,1747669833287,-500.0,0.0001172,2]
[361653500,1747669833296,-500.0,0.0001172,2]
[361653501,1747669833305,-500.0,0.0001172,2]
[361653502,1747669833314,-500.0,0.0001172,2]
[361653503,1747669833325,-500.0,0.0001172,2]
[361653504,1747669833334,-500.0,0.0001172,2]
[361653505,1747669833343,-500.0,0.0001172,2]
[361653506,1747669833352,-451.2974433,0.0001172,2]
[361653507,1747669833362,-500.0,0.0001172,2]
[361653508,1747669833370,-500.0,0.0001172,2]
[361653509,1747669833379,-500.0,0.0001172,2]
[361653510,1747669833389,-500.0,0.0001172,2]
[361653511,1747669833398,-500.0,0.0001172,2]
[361653512,1747669833407,-500.0,0.0001172,2]
[361653513,1747669833420,-600.0,0.0001172,2]
[361653514,1747669833430,-500.0,0.0001172,2]
[361653515,1747669833440,-500.0,0.0001172,2]
[361653516,1747669833449,-500.0,0.0001172,2]
[361653517,1747669833458,-500.0,0.0001172,2]
[361653518,1747669833468,-500.0,0.0001172,2]
[361653519,1747669833477,-500.0,0.0001172,2]
[361653520,1747669833488,-500.0,0.0001172,2]
[361653521,1747669833497,-500.0,0.0001172,2]
[361653522,1747669833507,-500.0,0.0001172,2]
[361653523,1747669833516,-500.0,0.0001172,2]
[361653524,1747669833526,-500.0,0.0001172,2]
[361653525,1747669833535,-500.0,0.0001172,2]
[361653526,1747669833545,-2419.13118493,0.00011722,2]
[361653527,1747669833555,-2419.13118493,0.00011744,2]
[361653528,1747669833564,-464.9064372,0.0001176,2]
[361653529,1747669833574,-2419.13118493,0.00011767,2]
[361653530,1747669833584,-176.58191523,0.00011778,2]
[361653531,1747669833593,-2714.356,0.00011781,2]
[361653532,1747669833604,-4880.71470145,0.00011789,2]
[361653533,1747669833616,-1029.0,0.00011789,2]
[361653534,1747669833629,-386.44996,0.00011789,2]
[361653535,1747669833869,-3498.67313071,0.00011789,2]
[361653536,1747669833879,-2419.13118493,0.00011789,2]
[361653537,1747669833889,-334.11,0.0001179,2]
[361653538,1747669833899,-334.11,0.0001179,2]
[361653539,1747669833908,-334.11,0.0001179,2]
[361653540,1747669833918,-334.11,0.0001179,2]
[361653541,1747669833931,-334.11,0.0001179,2]
[361653542,1747669833941,-334.11,0.0001179,2]
[361653543,1747669833951,-334.11,0.0001179,2]
[361653544,1747669833961,-162.5905219,0.00011799,2]
[361653545,1747669833972,-10216.75726858,0.00011799,2]
[361653546,1747669833981,-35707.31813196,0.000118,2]
[361653547,1747669833993,-228.13086804,0.000118,2]
[361653548,1747669834003,-7749.69009056,0.000118,2]
[361653549,1747669834015,-1049.79887374,0.000118,2]
[361653550,1747669834026,-706.43646245,0.000118,2]
[361653551,1747669834069,-334.11,0.0001179,2]
[361653552,1747669834079,-104001.51461049,0.000118,2]
[361653553,1747669834117,-7000.73147567,0.000118,2]
[361653559,1747669837808,-334.11,0.0001179,2]
[361653560,1747669837818,-220.72927444,0.000118,2]
[361653561,1747669838026,-86147.29771265,0.000118,2]
[361653562,1747669838036,-1000.0,0.000118,2]
[361653563,1747669838045,-500.0,0.000118,2]
[361653564,1747669838055,-170.07,0.000118,2]
[361653565,1747669838064,-150.3,0.000118,2]
[361653566,1747669838073,-300.0,0.000118,4]
[361653567,1747669838083,-9794.83779216,0.00011811,2]
[361653568,1747669838092,-2419.13118493,0.00011811,2]
[361653569,1747669838102,-334.11,0.00011823,2]
[361653570,1747669838111,-9794.83779216,0.00011833,2]
[361653571,1747669838119,-2419.13118493,0.00011833,2]
[361653572,1747669838128,-9794.83779216,0.00011856,2]
[361653573,1747669838138,-2419.13118493,0.00011856,2]
[361653574,1747669838147,-9794.83779216,0.00011878,2]
[361653575,1747669838155,-2419.13118493,0.00011878,2]
[361653576,1747669838164,-152.13,0.0001188,2]
[361653577,1747669838174,-603.85955266,0.00011881,2]
[361653578,1747669838183,-942.6162,0.000119,2]
[361653579,1747669838192,-339.09160573,0.000119,2]
[361653580,1747669838202,-1327.26182043,0.000119,2]
[361653581,1747669838212,-9794.83779216,0.000119,2]
[361653582,1747669838222,-5000.0,0.000119,2]
[361653583,1747669838231,-601.93471567,0.000119,2]
[361653584,1747669838240,-300.0,0.000119,4]
[361653585,1747669838249,-2419.13118493,0.000119,2]
[361653587,1747669838259,-1375.64374039,0.000119,2]
[361653588,1747669838268,-279.36486765,0.000119,2]
[361653589,1747669838278,-200.0,0.00011904,2]
[361653591,1747669838287,-500.0,0.00011918,2]
[361653593,1747669838296,-353.24,0.00011931,2]
[361653594,1747669838305,-301.61,0.00011931,2]
[361653595,1747669838314,-371.04446567,0.00011973,2]
[361653596,1747669838323,-500.0,0.00011973,2]
[361653597,1747669838332,-306.56440598,0.00011973,2]
[361653598,1747669838342,-500.0,0.00011973,2]
[361653599,1747669838351,-500.0,0.00011973,2]
[361653600,1747669838360,-500.0,0.00011973,2]
[361653602,1747669838370,-500.0,0.00011973,2]
[361653603,1747669838379,-500.0,0.00011973,2]
[361653604,1747669838388,-500.0,0.00011973,2]
[361653605,1747669838397,-511.48059896,0.00011973,2]
[361653606,1747669838670,-500.0,0.00011973,2]
[361653607,1747669838682,-500.0,0.00011973,2]
[361653608,1747669838691,-500.0,0.00011973,2]
[361653609,1747669838702,-500.0,0.00011973,2]
[361653610,1747669838711,-160424.25994312,0.00011976,2]
[361653611,1747669838721,-295.56013801,0.0001199,2]
[361653612,1747669838730,-206.62255988,0.00012,2]
[361653613,1747669838740,-28982.07968616,0.00012,2]
[361653614,1747669839248,-172011.1584282,0.00012,2]
[361653617,1747669839984,-3672.6988002,0.00012,2]
[361653618,1747669839996,-54258.12933204,0.00012,2]
[361653619,1747669840008,-2149.99999,0.00012,2]
[361653620,1747669840020,-282523.60402438,0.00012,2]
[361653621,1747669840031,-400.07483383,0.00012,2]
[361653622,1747669840236,-14057.38144673,0.00012,2]
[361653623,1747669840250,-6912.72432803,0.00012,2]
[361653624,1747669840260,-69586.91034355,0.00012,2]
[361653625,1747669840271,-479247.91522093,0.00012,2]
[361653626,1747669840282,-248911.00702784,0.00012,2]
[361653634,1747669842965,-9077.9173858,0.00012,2]
[361653635,1747669843315,-492.72,0.00012,2]
[361653636,1747669843329,-8437.98232835,0.00012,2]
[361653637,1747669843396,-646.64727163,0.00012,2]
[361653638,1747669843410,-633971.58994799,0.00012,2]
[361653817,1747669845954,-362097.92342403,0.00012,2]
[361653818,1747669845968,-27941.20949945,0.00012,2]
[361653819,1747669845981,-3505.02499855,0.00012,2]
[361653820,1747669845995,-63037.95953906,0.00012,2]
[361653821,1747669846385,-10980.63456963,0.00012,2]
[361653822,1747669846399,-17564.2213333,0.00012,2]
[361653826,1747669856800,50000.0,0.00042667,34]
[361653827,1747669865143,50000.0,0.00042667,30]
[361653828,1747669868516,50000.0,0.00042667,31]
[361653829,1747669871988,50000.0,0.00042667,32]
[361653830,1747669875735,50000.0,0.00042667,33]
[361653831,1747669879205,50000.0,0.00042667,34]
[361653832,1747669882729,50000.0,0.00042667,35]
[361653833,1747669886022,50000.0,0.00042667,36]
[361653834,1747669894079,2695.54,0.00042667,30]
[361653835,1747669912691,50000.0,0.00042677,37]
[361653836,1747669922020,50000.0,0.00042677,38]
[361653837,1747669937068,48000.0,0.00042677,39]
[361653840,1747670016740,320.7,0.00027397,120]
[361653851,1747670208509,994.23,0.0001095,2]
[361653852,1747670238627,165.36,0.00010972,2]
[361653853,1747670244423,250.0,0.00010971,2]
[361653854,1747670279048,1126.49,8.987e-05,2]
[361653855,1747670280351,-345.96991892,0.00011233,2]
[361653856,1747670282305,-343.9501342,0.00011233,2]
[361653857,1747670284184,-221.3883138,0.00011233,2]
[361653858,1747670285193,641.05,0.00010736,2]
[361653859,1747670285619,-334.65219525,0.00011233,2]
[361653860,1747670288024,-224.21812125,0.00011233,2]
[361653861,1747670289432,-157.06958621,0.00011233,2]
[361653862,1747670292159,-201.19858681,0.00011233,2]
[361653863,1747670293796,-253.34586606,0.00011233,2]
[361653864,1747670296003,-325.51681753,0.00011233,2]
[361653865,1747670300819,-179.04751958,0.00011233,2]
[361653866,1747670302175,-158.6911181,0.00011233,2]
[361653867,1747670304302,-200.0,0.00011233,2]
[361653868,1747670306400,-176.330591,0.00011233,2]
[361653869,1747670308392,-250.0,0.00011233,2]
[361653870,1747670310344,-270.93693571,0.00011233,2]
[361653871,1747670311709,-288.73543293,0.00011233,2]
[361653872,1747670315563,-68.94886265,0.00011233,2]
[361653873,1747670315588,-145.04817771,0.00011242,2]
[361653874,1747670317025,-54.95182229,0.00011242,2]
[361653875,1747670317050,-241.3214634,0.0001125,2]
[361653876,1747670319261,2280.0,0.00027397,120]
[361653877,1747670323472,-229.37873128,0.0001125,2]
[361653878,1747670329325,167.51,0.00011158,2]
[361653881,1747670469702,1076.92,0.00010959,2]
[361653882,1747670525453,151.0,0.00042666,39]
[361653883,1747670525538,155.0,0.00042666,39]
[361653884,1747670525774,500.0,0.00042666,39]
[361653885,1747670525840,156.0,0.00042666,30]
[361653886,1747670525890,151.0,0.00042666,39]
[361653887,1747670526509,151.0,0.00042666,39]
[361653888,1747670526698,518.5,0.00042666,39]
[361653889,1747670527381,537.6845,0.00042666,39]
[361653890,1747670528430,1000.0,0.00042666,39]
[361653891,1747670528524,537.6845,0.00042666,39]
[361653892,1747670529086,1037.0,0.00042666,39]
[361653893,1747670530453,200.0,0.00042666,39]
[361653894,1747670531441,207.4,0.00042666,39]
[361653895,1747670532012,215.0738,0.00042666,39]
[361653896,1747670532390,223.0315306,0.00042666,39]
[361653897,1747670533054,231.28369723,0.00042666,39]
[361653898,1747670533714,239.84119403,0.00042666,39]
[361653899,1747670534376,248.71531821,0.00042666,39]
[361653900,1747670534989,257.91778498,0.00042666,39]
[361653901,1747670535784,267.46074303,0.00042666,39]
[361653902,1747670536454,277.35679052,0.00042666,39]
[361653903,1747670537131,287.61899177,0.00042666,39]
[361653904,1747670538060,298.26089446,0.00042666,39]
[361653905,1747670539197,309.29654756,0.00042666,39]
[361653906,1747670539814,320.74051982,0.00042666,39]
[361653907,1747670540865,500.0,0.00010757,2]
[361653908,1747670541762,332.60791905,0.00042666,39]
[361653909,1747670542312,344.91441206,0.00042666,39]
[361653910,1747670542545,357.6762453,0.00042666,39]
[361653911,1747670543189,370.91026638,0.00042666,39]
[361653912,1747670543876,384.63394623,0.00042666,39]
[361653913,1747670544745,384.63394623,0.00042666,39]
[361653914,1747670563961,150.0,0.00042666,30]
[361653915,1747670573395,200.0,0.00010779,2]
[361653916,1747670587580,300.0,0.000112,4]
[361653917,1747670591249,200.0,0.00010653,2]
[361653918,1747670599189,2826.09827813,0.00042666,120]
[361653920,1747670604441,300.0,0.000139,5]
[361653922,1747670630719,165.5,0.00010722,2]
[361653923,1747670637991,500.0,0.00042666,30]
[361653924,1747670710027,500.0,0.00042666,30]
[361653925,1747670727401,2500.0,0.00042666,30]
[361653926,1747670730021,2500.0,0.00042666,30]
[361653927,1747670739173,2500.0,0.00042666,30]
[361653928,1747670755733,1384.0,0.00042666,30]
[361653929,1747670804819,2806.09,0.00010766,2]
[361653930,1747670804962,152.13,0.00010766,2]
[361653931,1747670824820,314.41,0.00010755,2]
[361653932,1747670826019,361.4119403,0.00042666,120]
[361653933,1747670827501,200.0,0.00042666,120]
[361653934,1747670828105,207.4,0.00042666,120]
[361653935,1747670828786,215.0738,0.00042666,120]
[361653936,1747670830018,223.0315306,0.00042666,120]
[361653937,1747670831176,231.28369723,0.00042666,120]
[361653938,1747670831808,239.84119403,0.00042666,120]
[361653939,1747670832492,248.71531821,0.00042666,120]
[361653940,1747670832732,2500.0,0.00042666,30]
[361653941,1747670833111,257.91778498,0.00042666,120]
[361653942,1747670833770,267.46074303,0.00042666,120]
[361653943,1747670834397,277.35679052,0.00042666,120]
[361653944,1747670835059,287.61899177,0.00042666,120]
[361653945,1747670835683,298.26089446,0.00042666,120]
[361653946,1747670835769,2500.0,0.00042666,30]
[361653947,1747670837220,309.29654756,0.00042666,120]
[361653948,1747670837631,320.74051982,0.00042666,120]
[361653949,1747670838072,332.60791905,0.00042666,120]
[361653950,1747670838262,300.0,0.000112,4]
[361653951,1747670838655,344.91441206,0.00042666,120]
[361653952,1747670839184,500.0,0.00042666,120]
[361653953,1747670841030,357.6762453,0.00042666,120]
[361653954,1747670841215,370.91026638,0.00042666,120]
[361653955,1747670841460,384.63394623,0.00042666,120]
[361653956,1747670841808,384.63394623,0.00042666,120]
[361653957,1747670843273,2500.0,0.00042666,30]
[361653958,1747670845589,1000.0,0.00042666,30]
[361653959,1747670855192,300.0,0.000139,5]
[361653960,1747670858191,400.0,0.00042666,120]
[361653961,1747670859327,1000.0,0.00042666,30]
[361653962,1747670877005,429.0,0.00042666,120]
[361653964,1747670878739,500.0,0.00042666,30]
[361653965,1747670886265,805.13,0.00010725,2]
[361653966,1747670891288,1000.0,0.00042666,30]
[361653967,1747670898260,350.0,0.00042666,30]
[361653974,1747671032061,-151.0,0.0001125,2]
[361653975,1747671032071,-250.0,0.0001125,2]
[361653976,1747671032080,-200.0,0.0001125,2]
[361653977,1747671032090,-200.0,0.0001125,2]
[361653978,1747671032100,-655.78980532,0.0001125,2]
[361653979,1747671032110,-600.0,0.000113,4]
[361653980,1747671032120,-1000.0,0.000114,4]
[361653981,1747671032130,-597.67318748,0.000115,4]
[361653982,1747671032151,-702.32681252,0.000115,4]
[361653983,1747671032160,-2380.08841779,0.00011502,2]
[361653984,1747671032169,-500.0,0.00011562,2]
[361653985,1747671032179,-1200.0,0.00011595,2]
[361653986,1747671032190,-150.0,0.00011598,2]
[361653987,1747671032200,-300.0,0.00011598,2]
[361653988,1747671032211,-183.98322147,0.00011599,2]
[361653989,1747671032222,-500.0,0.00011599,2]
[361653990,1747671032233,-500.0,0.00011599,2]
[361653991,1747671032244,-500.0,0.00011599,2]
[361653992,1747671032254,-500.0,0.00011599,2]
[361653993,1747671032265,-641.81178608,0.00011599,2]
[361653994,1747671032275,-500.0,0.00011599,2]
[361653995,1747671032284,-500.0,0.00011599,2]
[361653996,1747671032293,-500.0,0.00011599,2]
[361653997,1747671032304,-500.0,0.00011599,2]
[361653998,1747671032315,-500.0,0.00011599,2]
[361653999,1747671032324,-500.0,0.00011599,2]
[361654000,1747671032333,-500.0,0.00011599,2]
[361654001,1747671032343,-500.0,0.00011599,2]
[361654002,1747671032352,-500.0,0.00011599,2]
[361654003,1747671032362,-500.0,0.00011599,2]
[361654004,1747671032371,-600.0,0.00011599,2]
[361654005,1747671032383,-500.0,0.00011599,2]
[361654006,1747671032393,-500.0,0.00011599,2]
[361654007,1747671032403,-500.0,0.00011599,2]
[361654008,1747671032412,-500.0,0.00011599,2]
[361654009,1747671032422,-61.78976214,0.00011599,2]
[361654074,1747671033406,-438.21023786,0.00011599,2]
[361654076,1747671033416,-500.0,0.00011599,2]
[361654078,1747671033427,-500.0,0.00011599,2]
[361654080,1747671033436,-500.0,0.00011599,2]
[361654082,1747671033447,-500.0,0.00011599,2]
[361654084,1747671033456,-275.5614174,0.00011599,2]
[361654086,1747671033467,-35935.449,0.000116,2]
[361654088,1747671033477,-2586.0271,0.000116,2]
[361654090,1747671033487,-177.3621,0.000116,2]
[361654092,1747671033496,-1600.0,0.000116,4]
[361654095,1747671033506,-170.07,0.000116,2]
[361654096,1747671033517,-2500.0,0.000116,2]
[361654098,1747671033527,-10013.63968983,0.000116,2]
[361654100,1747671033537,-6164.20202796,0.00011633,2]
[361654103,1747671033548,-2724.91119642,0.00011633,2]
[361654105,1747671033562,-507.17232003,0.00011633,2]
[361654107,1747671033576,-617.35414537,0.00011633,2]
[361654109,1747671033585,-20.41483179,0.00011667,2]
[361654111,1747671033597,-5160.0,0.00011667,2]
[361654491,1747671037989,-613.67531283,0.00011499,2]
[361654494,1747671037998,-4833.22485799,0.00011667,2]
[361654497,1747671038007,-538.0,0.00011671,2]
[361654500,1747671038017,-150.20772618,0.00011682,2]
[361654503,1747671038026,-611.0,0.00011684,2]
[361654506,1747671038035,-167.26,0.0001169,2]
[361654509,1747671038045,-167.26,0.0001169,2]
[361654512,1747671038054,-35307.40783631,0.000117,2]
[361654514,1747671038067,-171568.79066369,0.000117,2]
[361654516,1747671038077,-1000.0,0.000117,2]
[361654518,1747671038087,-500.0,0.000117,2]
[361654520,1747671038096,-300.0,0.000117,4]
[361654522,1747671038106,-10013.63968978,0.000117,2]
[361654524,1747671038115,-10013.63968978,0.00011733,2]
[361654526,1747671038124,-500.0,0.00011753,2]
[361654528,1747671038135,-441.6611153,0.0001176,2]
[361654530,1747671038145,-358.0,0.00011765,2]
[361654532,1747671038154,-291.55957774,0.00011766,2]
[361654534,1747671038165,-196.0458747,0.00011766,2]
[361654536,1747671038174,-10013.63968978,0.00011767,2]
[361654538,1747671038183,-181.45775631,0.00011785,2]
[361654540,1747671038192,-565.31134956,0.00011798,2]
[361654542,1747671038201,-295.79,0.000118,2]
[361654544,1747671038211,-300.0,0.000118,4]
[361654546,1747671038222,-10013.63968978,0.000118,2]
[361654548,1747671038231,-181.45775631,0.00011823,2]
[361654550,1747671038241,-10013.63968978,0.00011833,2]
[361654552,1747671038251,-23900.0,0.00011834,2]
[361654554,1747671038262,-6441.24606323,0.00011856,2]
[361654556,1747671038271,-181.45775631,0.00011862,2]
[361654558,1747671038281,-6441.24606323,0.0001187,2]
[361654560,1747671038290,-337.25276722,0.00011885,2]
[361654562,1747671038299,-6441.24606323,0.00011885,2]
[361654564,1747671038310,-167.26,0.0001189,2]
[361654566,1747671038321,-942.6162,0.000119,2]
[361654569,1747671038340,-169.41035224,0.000119,2]
[361654571,1747671038351,-713.25194792,0.000119,2]
[361654573,1747671038360,-5000.0,0.000119,2]
[361654575,1747671038370,-524.25147476,0.000119,2]
[361654577,1747671038379,-6441.24606323,0.000119,2]
[361654579,1747671038389,-300.0,0.000119,4]
[361654581,1747671038398,-181.45775631,0.000119,2]
[361654583,1747671038408,-2426.01671322,0.000119,2]
[361654585,1747671038419,-168.76908574,0.000119,2]
[361654587,1747671038428,-2000.0,0.00011904,2]
[361654589,1747671038439,-200.0,0.00011904,2]
[361654591,1747671038449,-510.1748,0.0001194,2]
[361654593,1747671038458,-500.0,0.00011973,2]
[361654595,1747671038468,-500.0,0.00011973,2]
[361654597,1747671038477,-500.0,0.00011973,2]
[361654599,1747671038487,-500.37503577,0.00011973,2]
[361654601,1747671038496,-500.0,0.00011973,2]
[361654603,1747671038505,-500.0,0.00011973,2]
[361654605,1747671038515,-500.0,0.00011973,2]
[361654607,1747671038524,-500.0,0.00011973,2]
[361654609,1747671038534,-500.0,0.00011973,2]
[361654611,1747671038544,-500.0,0.00011973,2]
[361654613,1747671038553,-500.0,0.00011973,2]
[361654615,1747671038563,-500.0,0.00011973,2]
[361654617,1747671038573,-511.48059896,0.00011973,2]
[361654619,1747671038582,-500.0,0.00011973,2]
[361654621,1747671038592,-507.55713397,0.00011973,2]
[361654623,1747671038601,-500.0,0.00011973,2]
[361654625,1747671038611,-499.48786108,0.00011973,2]
[361654627,1747671038620,-9769.28372105,0.00011982,2]
[361654631,1747671038646,-6286.7785675,0.00011982,2]
[361654635,1747671038674,-1705.15247397,0.00011982,2]
[361654637,1747671038685,-139984.92638775,0.00011982,2]
[361654639,1747671038695,-350.0,0.00011988,2]
[361654641,1747671038704,-295.56013801,0.0001199,2]
[361654643,1747671038713,-297.36348839,0.00012,2]
[361654645,1747671038723,-174873.75964503,0.00012,2]
[361654706,1747671040157,-616.63521046,0.00012,2]
[361654707,1747671040256,-32690.13136797,0.00012,2]
[361654708,1747671040270,-526.03656809,0.00012,2]
[361654709,1747671040282,-1923.73857707,0.00012,2]
[361654710,1747671040294,-748.94784982,0.00012,2]
[361654729,1747671040574,-0.0058518,0.00012,2]
[361654730,1747671040663,-56658.6495009,0.00012,2]
[361654731,1747671040673,-287666.33020083,0.00012,2]
[361654732,1747671040685,-336.0581857,0.00012,2]
[361654743,1747671043098,-856.16398283,0.00011867,2]
[361654745,1747671043216,-9157.47570695,0.00011867,2]